[Event "Titled Tuesday Blitz January 10 Early 2023"]
[White "Kosakowski, Jakub"]
[Black "Bachmann, Axel"]
[WhiteFideId "1185080"]
[BlackFideId "3700488"]
[WhiteElo "2485"]
[BlackElo "2604"]
[Result "1-0"]
[Round "10"]
[TimeControl "180+2"]
[Date "2023.01.10"]
[WhiteClock "0:00:36"]
[BlackClock "0:00:09"]

1. e4 {[%clk 0:02:54]}  c6 {[%clk 0:02:59]} 2. Nf3 {[%clk 0:02:51]}  d5 {[%clk 0:03:00]} 3. Nc3 {[%clk 0:02:52]}  Bg4 {[%clk 0:02:59]} 4. h3 {[%clk 0:02:52]}  Bxf3 {[%clk 0:02:59]} 5. Qxf3 {[%clk 0:02:52]}  e6 {[%clk 0:02:59]} 6. Be2 {[%clk 0:02:53]}  Nf6 {[%clk 0:02:59]} 7. O-O {[%clk 0:02:52]}  Nbd7 {[%clk 0:02:48]} 8. d4 {[%clk 0:02:43]}  dxe4 {[%clk 0:02:46]} 9. Nxe4 {[%clk 0:02:43]}  Nxe4 {[%clk 0:02:46]} 10. Qxe4 {[%clk 0:02:43]}  Nf6 {[%clk 0:02:47]} 11. Qd3 {[%clk 0:02:41]}  Qb6 {[%clk 0:02:41]} 12. c3 {[%clk 0:02:34]}  Be7 {[%clk 0:02:40]} 13. Bd1 {[%clk 0:02:27]}  O-O {[%clk 0:02:38]} 14. Bc2 {[%clk 0:02:27]}  Rad8 {[%clk 0:02:31]} 15. Bg5 {[%clk 0:02:23]}  g6 {[%clk 0:02:28]} 16. Bb3 {[%clk 0:02:18]}  Rfe8 {[%clk 0:02:26]} 17. Qf3 {[%clk 0:02:17]}  Nd5 {[%clk 0:02:24]} 18. h4 {[%clk 0:02:15]}  Bxg5 {[%clk 0:02:03]} 19. hxg5 {[%clk 0:02:16]}  c5 {[%clk 0:02:00]} 20. dxc5 {[%clk 0:02:16]}  Qxc5 {[%clk 0:01:59]} 21. Rad1 {[%clk 0:02:16]}  b5 {[%clk 0:01:34]} 22. Rfe1 {[%clk 0:02:13]}  Nc7 {[%clk 0:01:25]} 23. Qf6 {[%clk 0:02:06]}  Rxd1 {[%clk 0:01:12]} 24. Rxd1 {[%clk 0:02:04]}  Qe7 {[%clk 0:01:12]} 25. Rd4 {[%clk 0:01:47]}  a6 {[%clk 0:01:02]} 26. g3 {[%clk 0:01:45]}  Qxf6 {[%clk 0:00:54]} 27. gxf6 {[%clk 0:01:44]}  Rc8 {[%clk 0:00:55]} 28. Rd6 {[%clk 0:01:38]}  Ne8 {[%clk 0:00:54]} 29. Rxa6 {[%clk 0:01:37]}  Nxf6 {[%clk 0:00:55]} 30. Rb6 {[%clk 0:01:36]}  Rc5 {[%clk 0:00:53]} 31. Bc2 {[%clk 0:01:31]}  Rd5 {[%clk 0:00:48]} 32. Bb3 {[%clk 0:01:27]}  Rd2 {[%clk 0:00:43]} 33. Rxb5 {[%clk 0:01:25]}  Rxb2 {[%clk 0:00:40]} 34. a4 {[%clk 0:01:22]}  Ne4 {[%clk 0:00:39]} 35. Bc4 {[%clk 0:01:17]}  Rc2 {[%clk 0:00:30]} 36. a5 {[%clk 0:01:09]}  Rxc3 {[%clk 0:00:28]} 37. a6 {[%clk 0:01:06]}  Ra3 {[%clk 0:00:20]} 38. Kg2 {[%clk 0:01:01]}  Nd6 {[%clk 0:00:19]} 39. Rb8+ {[%clk 0:00:59]}  Kg7 {[%clk 0:00:20]} 40. Be2 {[%clk 0:00:58]}  Ra2 {[%clk 0:00:20]} 41. Rd8 {[%clk 0:00:53]}  Rxe2 {[%clk 0:00:19]} 42. a7 {[%clk 0:00:52]}  Ra2 {[%clk 0:00:18]} 43. a8=Q {[%clk 0:00:53]}  Rxa8 {[%clk 0:00:18]} 44. Rxa8 {[%clk 0:00:54]}  h5 {[%clk 0:00:18]} 45. Ra6 {[%clk 0:00:53]}  Nf5 {[%clk 0:00:18]} 46. Ra5 {[%clk 0:00:53]}  Kf6 {[%clk 0:00:19]} 47. Ra7 {[%clk 0:00:53]}  Ne7 {[%clk 0:00:19]} 48. Rb7 {[%clk 0:00:53]}  Nd5 {[%clk 0:00:20]} 49. Kf3 {[%clk 0:00:53]}  g5 {[%clk 0:00:20]} 50. Kg2 {[%clk 0:00:53]}  Kg6 {[%clk 0:00:20]} 51. Ra7 {[%clk 0:00:53]}  f6 {[%clk 0:00:21]} 52. Rb7 {[%clk 0:00:54]}  Kf5 {[%clk 0:00:21]} 53. Rh7 {[%clk 0:00:53]}  Kg6 {[%clk 0:00:20]} 54. Ra7 {[%clk 0:00:53]}  Nc3 {[%clk 0:00:19]} 55. Ra6 {[%clk 0:00:52]}  e5 {[%clk 0:00:19]} 56. Ra8 {[%clk 0:00:50]}  Nd5 {[%clk 0:00:16]} 57. Rd8 {[%clk 0:00:49]}  Ne7 {[%clk 0:00:15]} 58. Kf3 {[%clk 0:00:49]}  Nf5 {[%clk 0:00:15]} 59. Ke4 {[%clk 0:00:48]}  h4 {[%clk 0:00:13]} 60. gxh4 {[%clk 0:00:43]}  Nxh4 {[%clk 0:00:13]} 61. Rh8 {[%clk 0:00:36]}  Nf5 {[%clk 0:00:12]} 62. Rg8+ {[%clk 0:00:36]}  Kf7 {[%clk 0:00:12]} 63. Kxf5 {[%clk 0:00:35]}  Kxg8 {[%clk 0:00:09]} 64. Kxf6 {[%clk 0:00:35]}  g4 {[%clk 0:00:09]} 65. Kxe5 {[%clk 0:00:36]} 1-0


[Site "https://www.chess.com"]

[Event "Titled Tuesday Blitz January 10 Early 2023"]
[White "Keymer, Vincent"]
[Black "Galchenko, Matvey"]
[WhiteFideId "12940690"]
[BlackFideId "24175480"]
[WhiteElo "2700"]
[BlackElo "2438"]
[Result "1-0"]
[Round "10"]
[TimeControl "180+2"]
[Date "2023.01.10"]
[WhiteClock "0:01:12"]
[BlackClock "0:01:10"]

1. Nf3 {[%clk 0:03:00]}  c5 {[%clk 0:02:58]} 2. c4 {[%clk 0:03:00]}  g6 {[%clk 0:02:59]} 3. e4 {[%clk 0:02:56]}  Bg7 {[%clk 0:02:59]} 4. d4 {[%clk 0:02:57]}  cxd4 {[%clk 0:02:59]} 5. Nxd4 {[%clk 0:02:58]}  Nc6 {[%clk 0:03:00]} 6. Be3 {[%clk 0:02:57]}  Nf6 {[%clk 0:03:01]} 7. Nc3 {[%clk 0:02:57]}  O-O {[%clk 0:03:01]} 8. Be2 {[%clk 0:02:57]}  d6 {[%clk 0:03:01]} 9. O-O {[%clk 0:02:57]}  Bd7 {[%clk 0:03:01]} 10. Nc2 {[%clk 0:02:57]}  Qa5 {[%clk 0:03:01]} 11. Qd2 {[%clk 0:02:54]}  Rfc8 {[%clk 0:02:59]} 12. h3 {[%clk 0:02:53]}  Ne5 {[%clk 0:02:32]} 13. b3 {[%clk 0:02:53]}  a6 {[%clk 0:02:08]} 14. a4 {[%clk 0:02:43]}  Qd8 {[%clk 0:01:59]} 15. a5 {[%clk 0:02:36]}  Bc6 {[%clk 0:01:58]} 16. f3 {[%clk 0:02:22]}  Nh5 {[%clk 0:01:56]} 17. f4 {[%clk 0:02:20]}  Nd7 {[%clk 0:01:52]} 18. Bxh5 {[%clk 0:02:20]}  gxh5 {[%clk 0:01:53]} 19. Bd4 {[%clk 0:02:20]}  Nf6 {[%clk 0:01:44]} 20. Qd3 {[%clk 0:02:16]}  e5 {[%clk 0:01:41]} 21. Bb6 {[%clk 0:02:13]}  Qe7 {[%clk 0:01:35]} 22. f5 {[%clk 0:02:14]}  Nd7 {[%clk 0:01:35]} 23. Ne3 {[%clk 0:01:53]}  Nxb6 {[%clk 0:01:33]} 24. axb6 {[%clk 0:01:53]}  Qg5 {[%clk 0:01:33]} 25. Ned5 {[%clk 0:01:49]}  Kh8 {[%clk 0:01:33]} 26. f6 {[%clk 0:01:46]}  Bh6 {[%clk 0:01:33]} 27. Rf5 {[%clk 0:01:46]}  Qd2 {[%clk 0:01:31]} 28. Rd1 {[%clk 0:01:43]}  Qxd3 {[%clk 0:01:30]} 29. Rxd3 {[%clk 0:01:44]}  Bxd5 {[%clk 0:01:16]} 30. Nxd5 {[%clk 0:01:44]}  a5 {[%clk 0:01:15]} 31. Rxh5 {[%clk 0:01:40]}  Bc1 {[%clk 0:01:12]} 32. Nc7 {[%clk 0:01:23]}  Rab8 {[%clk 0:01:10]} 33. Rxd6 {[%clk 0:01:23]}  Be3+ {[%clk 0:01:10]} 34. Kh2 {[%clk 0:01:22]}  Bxb6 {[%clk 0:01:11]} 35. Rxb6 {[%clk 0:01:22]}  Rxc7 {[%clk 0:01:11]} 36. Rxe5 {[%clk 0:01:23]}  Rc6 {[%clk 0:01:11]} 37. Rxc6 {[%clk 0:01:22]}  bxc6 {[%clk 0:01:12]} 38. Rxa5 {[%clk 0:01:22]}  h6 {[%clk 0:01:10]} 39. Rc5 {[%clk 0:01:20]}  Rxb3 {[%clk 0:01:09]} 40. Rxc6 {[%clk 0:01:20]}  Re3 {[%clk 0:01:10]} 41. Rc8+ {[%clk 0:01:16]}  Kh7 {[%clk 0:01:10]} 42. Re8 {[%clk 0:01:17]}  Kg6 {[%clk 0:01:10]} 43. e5 {[%clk 0:01:18]}  Rc3 {[%clk 0:01:10]} 44. g4 {[%clk 0:01:12]}  Rxc4 {[%clk 0:01:09]} 45. Rg8+ {[%clk 0:01:11]}  Kh7 {[%clk 0:01:08]} 46. Rg7+ {[%clk 0:01:12]}  Kh8 {[%clk 0:01:09]} 47. Rxf7 {[%clk 0:01:12]}  h5 {[%clk 0:01:10]} 48. g5 {[%clk 0:01:12]} 1-0


[Site "https://www.chess.com"]

[Event "Titled Tuesday Blitz January 10 Early 2023"]
[White "Gareyev, Timur"]
[Black "Dominguez Perez, Leinier"]
[WhiteFideId "14200937"]
[BlackFideId "3503240"]
[WhiteElo "2617"]
[BlackElo "2739"]
[Result "0-1"]
[Round "10"]
[TimeControl "180+2"]
[Date "2023.01.10"]
[WhiteClock "0:00:02"]
[BlackClock "0:00:04"]

1. d4 {[%clk 0:02:47]}  d5 {[%clk 0:02:59]} 2. c4 {[%clk 0:02:47]}  dxc4 {[%clk 0:02:59]} 3. Nf3 {[%clk 0:02:45]}  c6 {[%clk 0:02:58]} 4. e3 {[%clk 0:02:38]}  Be6 {[%clk 0:02:56]} 5. a4 {[%clk 0:02:31]}  Nf6 {[%clk 0:02:51]} 6. Nbd2 {[%clk 0:02:27]}  c5 {[%clk 0:02:27]} 7. Ng5 {[%clk 0:02:11]}  Bg4 {[%clk 0:02:12]} 8. Ndf3 {[%clk 0:02:02]}  Nc6 {[%clk 0:01:28]} 9. Bxc4 {[%clk 0:01:52]}  e6 {[%clk 0:01:28]} 10. h3 {[%clk 0:01:25]}  Bxf3 {[%clk 0:01:27]} 11. Qxf3 {[%clk 0:01:13]}  cxd4 {[%clk 0:01:27]} 12. O-O {[%clk 0:01:10]}  Be7 {[%clk 0:01:25]} 13. Rd1 {[%clk 0:00:53]}  O-O {[%clk 0:01:11]} 14. exd4 {[%clk 0:00:53]}  Nd5 {[%clk 0:00:44]} 15. Qh5 {[%clk 0:00:47]}  Bxg5 {[%clk 0:00:36]} 16. Bxg5 {[%clk 0:00:46]}  Qd7 {[%clk 0:00:37]} 17. Ra3 {[%clk 0:00:40]}  Nce7 {[%clk 0:00:34]} 18. Rg3 {[%clk 0:00:36]}  Nf5 {[%clk 0:00:28]} 19. Rf3 {[%clk 0:00:30]}  h6 {[%clk 0:00:24]} 20. Bc1 {[%clk 0:00:26]}  Nf6 {[%clk 0:00:23]} 21. Rxf5 {[%clk 0:00:19]}  Nxh5 {[%clk 0:00:23]} 22. Rxh5 {[%clk 0:00:20]}  Rac8 {[%clk 0:00:23]} 23. Bb3 {[%clk 0:00:16]}  Rfd8 {[%clk 0:00:21]} 24. Be3 {[%clk 0:00:16]}  Qc7 {[%clk 0:00:20]} 25. d5 {[%clk 0:00:16]}  exd5 {[%clk 0:00:18]} 26. Bxd5 {[%clk 0:00:16]}  Rd7 {[%clk 0:00:17]} 27. Rd4 {[%clk 0:00:09]}  Rcd8 {[%clk 0:00:11]} 28. Rf5 {[%clk 0:00:06]}  Kh8 {[%clk 0:00:09]} 29. b3 {[%clk 0:00:04]}  f6 {[%clk 0:00:07]} 30. h4 {[%clk 0:00:03]}  Qc2 {[%clk 0:00:05]} 31. g4 {[%clk 0:00:02]}  Qxf5 {[%clk 0:00:03]} 32. gxf5 {[%clk 0:00:02]}  Rxd5 {[%clk 0:00:04]} 33. Rf4 {[%clk 0:00:02]}  a6 {[%clk 0:00:04]} 34. Kg2 {[%clk 0:00:03]}  R8d7 {[%clk 0:00:02]} 35. h5 {[%clk 0:00:02]}  Kh7 {[%clk 0:00:02]} 36. Kg3 {[%clk 0:00:03]}  Re5 {[%clk 0:00:03]} 37. Kg4 {[%clk 0:00:03]}  Red5 {[%clk 0:00:03]} 38. Rb4 {[%clk 0:00:03]}  Rd3 {[%clk 0:00:02]} 39. Rb6 {[%clk 0:00:03]}  Kg8 {[%clk 0:00:03]} 40. Bf4 {[%clk 0:00:03]}  Kf7 {[%clk 0:00:03]} 41. f3 {[%clk 0:00:03]}  R3d5 {[%clk 0:00:03]} 42. b4 {[%clk 0:00:03]}  Rd4 {[%clk 0:00:03]} 43. b5 {[%clk 0:00:03]}  a5 {[%clk 0:00:04]} 44. Re6 {[%clk 0:00:02]}  Rxa4 {[%clk 0:00:04]} 45. b6 {[%clk 0:00:02]}  Rb4 {[%clk 0:00:04]} 0-1


[Site "https://www.chess.com"]

[Event "Titled Tuesday Blitz January 10 Early 2023"]
[White "Rakhmatullaev, Almas"]
[Black "Kravtsiv, Martyn"]
[WhiteFideId "14205793"]
[BlackFideId "14113147"]
[WhiteElo "2275"]
[BlackElo "2598"]
[Result "0-1"]
[Round "10"]
[TimeControl "180+2"]
[Date "2023.01.10"]
[WhiteClock "0:00:01"]
[BlackClock "0:00:57"]

1. e4 {[%clk 0:03:00]}  e5 {[%clk 0:02:59]} 2. Nf3 {[%clk 0:02:56]}  Nc6 {[%clk 0:02:59]} 3. d4 {[%clk 0:02:57]}  exd4 {[%clk 0:02:58]} 4. Nxd4 {[%clk 0:02:58]}  Nf6 {[%clk 0:02:58]} 5. Nc3 {[%clk 0:02:56]}  Bb4 {[%clk 0:02:57]} 6. Nxc6 {[%clk 0:02:56]}  bxc6 {[%clk 0:02:58]} 7. Qd4 {[%clk 0:02:55]}  c5 {[%clk 0:02:49]} 8. Qe5+ {[%clk 0:02:55]}  Kf8 {[%clk 0:02:45]} 9. Bd2 {[%clk 0:02:53]}  d6 {[%clk 0:02:44]} 10. Qg3 {[%clk 0:02:53]}  h5 {[%clk 0:02:34]} 11. a3 {[%clk 0:02:48]}  h4 {[%clk 0:02:31]} 12. Qd3 {[%clk 0:02:42]}  Ba5 {[%clk 0:02:14]} 13. O-O-O {[%clk 0:02:28]}  Qe8 {[%clk 0:02:08]} 14. f3 {[%clk 0:02:21]}  Rb8 {[%clk 0:02:07]} 15. Bf4 {[%clk 0:02:05]}  Kg8 {[%clk 0:01:50]} 16. Be2 {[%clk 0:01:37]}  Nh5 {[%clk 0:01:49]} 17. Bd2 {[%clk 0:01:23]}  Qe5 {[%clk 0:01:49]} 18. Qe3 {[%clk 0:01:02]}  Nf6 {[%clk 0:01:48]} 19. Rde1 {[%clk 0:00:47]}  Be6 {[%clk 0:01:37]} 20. f4 {[%clk 0:00:33]}  Qd4 {[%clk 0:01:37]} 21. Bf3 {[%clk 0:00:30]}  h3 {[%clk 0:01:27]} 22. g3 {[%clk 0:00:25]}  Bg4 {[%clk 0:01:27]} 23. e5 {[%clk 0:00:17]}  Qxe3 {[%clk 0:01:21]} 24. Rxe3 {[%clk 0:00:18]}  Bxf3 {[%clk 0:01:21]} 25. Rxf3 {[%clk 0:00:19]}  Ng4 {[%clk 0:01:20]} 26. exd6 {[%clk 0:00:19]}  cxd6 {[%clk 0:01:21]} 27. Nb1 {[%clk 0:00:06]}  Bc7 {[%clk 0:01:12]} 28. c4 {[%clk 0:00:05]}  Kh7 {[%clk 0:01:08]} 29. Nc3 {[%clk 0:00:04]}  Ba5 {[%clk 0:01:07]} 30. Kc2 {[%clk 0:00:04]}  Rhe8 {[%clk 0:01:06]} 31. f5 {[%clk 0:00:04]}  Bxc3 {[%clk 0:01:04]} 32. Bxc3 {[%clk 0:00:05]}  Re2+ {[%clk 0:01:04]} 33. Kd3 {[%clk 0:00:05]}  Rf2 {[%clk 0:01:00]} 34. Rf1 {[%clk 0:00:01]}  Rxh2 {[%clk 0:00:58]} 35. Rf4 {[%clk 0:00:01]}  Ne5+ {[%clk 0:00:57]} 0-1


[Site "https://www.chess.com"]

[Event "Titled Tuesday Blitz January 10 Early 2023"]
[White "Najdin, Danil"]
[Black "Svane, Frederik"]
[WhiteFideId "4172426"]
[BlackFideId "12923044"]
[WhiteElo "2235"]
[BlackElo "2600"]
[Result "0-1"]
[Round "10"]
[TimeControl "180+2"]
[Date "2023.01.10"]
[WhiteClock "0:00:32"]
[BlackClock "0:00:43"]

1. e4 {[%clk 0:03:00]}  c5 {[%clk 0:03:00]} 2. Nf3 {[%clk 0:02:59]}  d6 {[%clk 0:03:00]} 3. d4 {[%clk 0:02:58]}  cxd4 {[%clk 0:03:01]} 4. Nxd4 {[%clk 0:02:59]}  Nf6 {[%clk 0:03:02]} 5. Nc3 {[%clk 0:02:59]}  Nc6 {[%clk 0:03:02]} 6. Be3 {[%clk 0:02:59]}  Ng4 {[%clk 0:03:02]} 7. Bg5 {[%clk 0:02:55]}  Qb6 {[%clk 0:02:57]} 8. Bb5 {[%clk 0:02:18]}  Bd7 {[%clk 0:02:37]} 9. Bxc6 {[%clk 0:01:54]}  bxc6 {[%clk 0:02:35]} 10. O-O {[%clk 0:01:54]}  h6 {[%clk 0:02:30]} 11. Bh4 {[%clk 0:01:49]}  g5 {[%clk 0:02:26]} 12. Bg3 {[%clk 0:01:49]}  Bg7 {[%clk 0:02:26]} 13. Nb3 {[%clk 0:01:45]}  h5 {[%clk 0:02:21]} 14. h3 {[%clk 0:01:26]}  h4 {[%clk 0:02:20]} 15. Bh2 {[%clk 0:01:26]}  Nxh2 {[%clk 0:02:19]} 16. Kxh2 {[%clk 0:01:27]}  Be5+ {[%clk 0:02:15]} 17. Kh1 {[%clk 0:01:24]}  a5 {[%clk 0:02:03]} 18. Rb1 {[%clk 0:01:23]}  Be6 {[%clk 0:01:58]} 19. Nd2 {[%clk 0:01:21]}  Rb8 {[%clk 0:01:55]} 20. Nf3 {[%clk 0:01:19]}  f6 {[%clk 0:01:32]} 21. Ne2 {[%clk 0:01:14]}  Bxa2 {[%clk 0:01:29]} 22. Ra1 {[%clk 0:01:08]}  Qxb2 {[%clk 0:01:26]} 23. Nxe5 {[%clk 0:01:02]}  dxe5 {[%clk 0:01:22]} 24. Qd2 {[%clk 0:01:03]}  Kf7 {[%clk 0:01:10]} 25. Nc3 {[%clk 0:00:50]}  Rhd8 {[%clk 0:00:56]} 26. Qe3 {[%clk 0:00:46]}  Bc4 {[%clk 0:00:51]} 27. Rfb1 {[%clk 0:00:31]}  Qxc2 {[%clk 0:00:51]} 28. Rxb8 {[%clk 0:00:31]}  Rxb8 {[%clk 0:00:52]} 29. Rxa5 {[%clk 0:00:32]}  Rb3 {[%clk 0:00:43]} 0-1


[Site "https://www.chess.com"]

[Event "Titled Tuesday Blitz January 10 Early 2023"]
[White "Svane, Rasmus"]
[Black "Makarian, Rudik"]
[WhiteFideId "4657101"]
[BlackFideId "44105681"]
[WhiteElo "2623"]
[BlackElo "2545"]
[Result "1-0"]
[Round "10"]
[TimeControl "180+2"]
[Date "2023.01.10"]
[WhiteClock "0:00:03"]
[BlackClock "0:00:04"]

1. Nf3 {[%clk 0:03:00]}  Nf6 {[%clk 0:02:56]} 2. g3 {[%clk 0:03:00]}  b5 {[%clk 0:02:57]} 3. Bg2 {[%clk 0:02:59]}  Bb7 {[%clk 0:02:55]} 4. d4 {[%clk 0:02:59]}  e6 {[%clk 0:02:52]} 5. Bg5 {[%clk 0:03:00]}  Be7 {[%clk 0:02:51]} 6. Qd3 {[%clk 0:03:00]}  a6 {[%clk 0:02:44]} 7. Nbd2 {[%clk 0:03:00]}  d5 {[%clk 0:02:41]} 8. c3 {[%clk 0:02:18]}  Nbd7 {[%clk 0:02:30]} 9. Bxf6 {[%clk 0:02:15]}  Nxf6 {[%clk 0:02:24]} 10. a4 {[%clk 0:02:13]}  b4 {[%clk 0:02:10]} 11. Nb3 {[%clk 0:02:11]}  c6 {[%clk 0:01:54]} 12. O-O {[%clk 0:02:05]}  O-O {[%clk 0:01:53]} 13. Rfc1 {[%clk 0:02:04]}  a5 {[%clk 0:01:49]} 14. Ne5 {[%clk 0:02:00]}  Nd7 {[%clk 0:01:44]} 15. Nxd7 {[%clk 0:01:58]}  Qxd7 {[%clk 0:01:45]} 16. cxb4 {[%clk 0:01:57]}  Bxb4 {[%clk 0:01:44]} 17. Nc5 {[%clk 0:01:57]}  Qc7 {[%clk 0:01:33]} 18. Rc2 {[%clk 0:01:57]}  Bxc5 {[%clk 0:01:16]} 19. Rxc5 {[%clk 0:01:58]}  Qb6 {[%clk 0:01:15]} 20. Qc3 {[%clk 0:01:58]}  h5 {[%clk 0:01:07]} 21. Rc1 {[%clk 0:01:57]}  g6 {[%clk 0:01:07]} 22. e4 {[%clk 0:01:57]}  dxe4 {[%clk 0:01:02]} 23. Bxe4 {[%clk 0:01:57]}  Rfd8 {[%clk 0:01:03]} 24. Qe3 {[%clk 0:01:33]}  Qxb2 {[%clk 0:00:32]} 25. Rb1 {[%clk 0:01:32]}  Qxd4 {[%clk 0:00:28]} 26. Rxb7 {[%clk 0:01:29]}  Qxe3 {[%clk 0:00:21]} 27. fxe3 {[%clk 0:01:30]}  Rd2 {[%clk 0:00:21]} 28. Rxc6 {[%clk 0:01:25]}  Ra2 {[%clk 0:00:16]} 29. Rbc7 {[%clk 0:00:16]}  Rxa4 {[%clk 0:00:12]} 30. Rc4 {[%clk 0:00:16]}  Rxc4 {[%clk 0:00:11]} 31. Rxc4 {[%clk 0:00:17]}  Rb8 {[%clk 0:00:10]} 32. Kf2 {[%clk 0:00:15]}  Rb2+ {[%clk 0:00:10]} 33. Rc2 {[%clk 0:00:16]}  Rb4 {[%clk 0:00:09]} 34. Kf3 {[%clk 0:00:15]}  a4 {[%clk 0:00:09]} 35. Ra2 {[%clk 0:00:15]}  Kg7 {[%clk 0:00:08]} 36. h4 {[%clk 0:00:15]}  Rc4 {[%clk 0:00:07]} 37. Bc2 {[%clk 0:00:14]}  a3 {[%clk 0:00:06]} 38. Ke2 {[%clk 0:00:12]}  Rg4 {[%clk 0:00:06]} 39. Kf3 {[%clk 0:00:12]}  Rc4 {[%clk 0:00:06]} 40. Bd3 {[%clk 0:00:12]}  Rc3 {[%clk 0:00:07]} 41. Ke2 {[%clk 0:00:13]}  Rb3 {[%clk 0:00:05]} 42. Bc2 {[%clk 0:00:13]}  Rc3 {[%clk 0:00:05]} 43. Kd2 {[%clk 0:00:13]}  Rc4 {[%clk 0:00:06]} 44. Bd1 {[%clk 0:00:12]}  Rc5 {[%clk 0:00:04]} 45. Rxa3 {[%clk 0:00:12]}  Rd5+ {[%clk 0:00:05]} 46. Ke1 {[%clk 0:00:12]}  Re5 {[%clk 0:00:05]} 47. Bf3 {[%clk 0:00:12]}  Rc5 {[%clk 0:00:05]} 48. Kf2 {[%clk 0:00:12]}  Rc2+ {[%clk 0:00:06]} 49. Be2 {[%clk 0:00:12]}  Rb2 {[%clk 0:00:06]} 50. Rc3 {[%clk 0:00:12]}  Rb7 {[%clk 0:00:06]} 51. Rc6 {[%clk 0:00:12]}  Ra7 {[%clk 0:00:06]} 52. Rb6 {[%clk 0:00:12]}  Kf6 {[%clk 0:00:05]} 53. Rb2 {[%clk 0:00:11]}  Rc7 {[%clk 0:00:05]} 54. Bf3 {[%clk 0:00:11]}  Ra7 {[%clk 0:00:05]} 55. Be4 {[%clk 0:00:10]}  Ke5 {[%clk 0:00:05]} 56. Kf3 {[%clk 0:00:10]}  Kf6 {[%clk 0:00:05]} 57. Rb7 {[%clk 0:00:10]}  Ra6 {[%clk 0:00:05]} 58. Bd3 {[%clk 0:00:10]}  Ra5 {[%clk 0:00:04]} 59. Bb5 {[%clk 0:00:10]}  Kg7 {[%clk 0:00:04]} 60. Be8 {[%clk 0:00:10]}  Rf5+ {[%clk 0:00:05]} 61. Ke4 {[%clk 0:00:10]}  Rf2 {[%clk 0:00:05]} 62. Ra7 {[%clk 0:00:06]}  Kf8 {[%clk 0:00:05]} 63. Bb5 {[%clk 0:00:03]}  Rf1 {[%clk 0:00:04]} 64. Bxf1 {[%clk 0:00:03]} 1-0


[Site "https://www.chess.com"]

[Event "Titled Tuesday Blitz January 10 Early 2023"]
[White "Pakleza, Zbigniew"]
[Black "Jones, Gawain C B"]
[WhiteFideId "1119290"]
[BlackFideId "409561"]
[WhiteElo "2494"]
[BlackElo "2618"]
[Result "0-1"]
[Round "10"]
[TimeControl "180+2"]
[Date "2023.01.10"]
[WhiteClock "0:00:03"]
[BlackClock "0:01:13"]

1. d4 {[%clk 0:03:00]}  Nf6 {[%clk 0:02:55]} 2. Nf3 {[%clk 0:03:01]}  g6 {[%clk 0:02:55]} 3. Bf4 {[%clk 0:03:01]}  Bg7 {[%clk 0:02:54]} 4. e3 {[%clk 0:03:02]}  O-O {[%clk 0:02:54]} 5. Be2 {[%clk 0:03:01]}  d6 {[%clk 0:02:54]} 6. h3 {[%clk 0:03:00]}  b6 {[%clk 0:02:54]} 7. O-O {[%clk 0:02:59]}  Bb7 {[%clk 0:02:54]} 8. c3 {[%clk 0:03:00]}  Nbd7 {[%clk 0:02:54]} 9. a4 {[%clk 0:02:59]}  a5 {[%clk 0:02:53]} 10. Nbd2 {[%clk 0:03:00]}  e5 {[%clk 0:02:51]} 11. dxe5 {[%clk 0:02:48]}  dxe5 {[%clk 0:02:51]} 12. Nxe5 {[%clk 0:02:47]}  Nd5 {[%clk 0:02:44]} 13. Nxd7 {[%clk 0:02:34]}  Nxf4 {[%clk 0:02:41]} 14. exf4 {[%clk 0:02:28]}  Qxd7 {[%clk 0:02:41]} 15. Bf3 {[%clk 0:02:25]}  Bxf3 {[%clk 0:02:33]} 16. Nxf3 {[%clk 0:02:26]}  Qf5 {[%clk 0:02:33]} 17. Nd4 {[%clk 0:01:51]}  Qxf4 {[%clk 0:02:32]} 18. Qf3 {[%clk 0:01:45]}  Qxf3 {[%clk 0:02:32]} 19. Nxf3 {[%clk 0:01:46]}  Rfe8 {[%clk 0:02:29]} 20. Rfe1 {[%clk 0:01:43]}  Kf8 {[%clk 0:02:23]} 21. Rad1 {[%clk 0:01:39]}  Rxe1+ {[%clk 0:02:18]} 22. Nxe1 {[%clk 0:01:40]}  Ke7 {[%clk 0:02:16]} 23. Kf1 {[%clk 0:01:41]}  Rb8 {[%clk 0:02:11]} 24. Nc2 {[%clk 0:01:24]}  b5 {[%clk 0:02:09]} 25. Nd4 {[%clk 0:01:20]}  Bxd4 {[%clk 0:02:07]} 26. Rxd4 {[%clk 0:01:21]}  bxa4 {[%clk 0:01:59]} 27. Rxa4 {[%clk 0:01:22]}  Rxb2 {[%clk 0:01:59]} 28. Rxa5 {[%clk 0:01:22]}  Rc2 {[%clk 0:01:59]} 29. Re5+ {[%clk 0:01:09]}  Kd6 {[%clk 0:01:58]} 30. Re3 {[%clk 0:01:09]}  c5 {[%clk 0:01:53]} 31. g4 {[%clk 0:01:05]}  f5 {[%clk 0:01:49]} 32. g5 {[%clk 0:00:57]}  f4 {[%clk 0:01:44]} 33. Re4 {[%clk 0:00:23]}  f3 {[%clk 0:01:37]} 34. Ke1 {[%clk 0:00:22]}  Rxc3 {[%clk 0:01:31]} 35. Rh4 {[%clk 0:00:23]}  Rd3 {[%clk 0:01:18]} 36. Rxh7 {[%clk 0:00:20]}  c4 {[%clk 0:01:17]} 37. Rg7 {[%clk 0:00:17]}  c3 {[%clk 0:01:17]} 38. Rxg6+ {[%clk 0:00:18]}  Kd5 {[%clk 0:01:15]} 39. Rg8 {[%clk 0:00:09]}  c2 {[%clk 0:01:14]} 40. Rd8+ {[%clk 0:00:03]}  Ke4 {[%clk 0:01:13]} 0-1


[Site "https://www.chess.com"]